{"text_format":"1","workbook":"xlsx","n_sheets":2,"sheets":["Pokyny pro vyplnění","Položkový rozpočet parkpavilon"],"not_rendered":{"charts":0,"images":18,"macros":1,"external_links":0,"defined_names":1,"comments":0,"pivot_tables":0},"unopened":[],"bounds":{"document_bytes":16777216,"sheet_cells":100000,"rows_first":2000,"rows_last":500,"rows_between":2000,"halvings":0,"cell_chars":16384,"cell_head_chars":4096},"cells_cut":0,"cells_raw":0,"read":"whole","date_system":"1900"}

{"sheet":"Pokyny pro vyplnění","index":0,"n_rows":2,"n_cols":1,"rows_kept":2,"cut":false,"hidden":false,"merged":[[1,0,30,9]]}
["Pokyny pro vyplnění:"]
["Měnit lze pouze buňky se zeleným podbarvením. Ostatní pole jsou uzamčená. Obrázky jsou pouze ilustrativní."]

{"sheet":"Položkový rozpočet parkpavilon","index":1,"n_rows":85,"n_cols":10,"rows_kept":85,"cut":false,"hidden":false,"merged":[[57,1,57,8],[0,2,0,7],[1,2,2,7],[3,8,4,8],[0,1,2,1],[3,1,4,1],[3,4,3,5],[3,6,3,7],[3,2,4,2],[3,3,4,3],[5,1,5,8],[34,1,34,8],[43,1,43,8],[48,1,48,8],[58,7,58,8],[83,1,83,8],[84,1,84,8],[61,2,61,4],[58,1,58,6],[59,1,59,7],[61,7,61,8]]}
[null,"                                      ","Položkový rozpočet"]
[null,null," Objekt:  Parkpavilon"]
[]
[null,"název","mj","množství","materiál",null,"montáž",null,"ilustrační obrázek"]
[null,null,null,null,"cena/ks","celkem","cena/ks","celkem"]
[null,"Dodávka a montáž technologie "]
[1,"Hlavní terminál, vč. adaptéru a kabelu k terminálu 2m (Touch screen monitor min. 10,4\", hlasitá a diskrétní komunikace, identifikace volajícího včetně jména klienta, možnost zobrazení informací z EPS, poslech radiových stanic na hlavním terminálu, volba IP radiostanic přímo na hlavním terminálu v uživatelském menu. Možnost integrace s bezdrátovým systémem a zobrazení bezdrátových bezpečnostních tlačítek s funkcí hlídání průchodu klientů zakázanou zónou, ve spojení s IP kamerou zobrazení online přenosu od vchodu na oddělení)","ks",1,null,{"$f":"D7*E7","v":0},null,0]
[null,"Zásuvka terminálu","ks",1,null,{"$f":"D8*E8","v":0},null,{"$f":"D8*G8","v":0},null,"IFS-A / IFS-B / CM-07 LAN/M"]
[4,"Datový rozvaděč nástěnný 19\"/9U - nástěnný\n600 x 500 x 395 mm, 16,5 kg","ks",1,null,0,null,{"$f":"D9*G9","v":0}]
[11,"Napájecí zdroj + lokální server ","ks",1,null,0,null,0]
[12,"Rozvodný panel 8x 230V 19\"/2U","ks",1,null,0,null,0]
[14,"Napájecí zdroj NZ-240/24V s příslušenstvím","ks",3,null,0,null,0]
[null,"SW - licence pro Hlavní terminál","ks",1,null,0,null,0]
[15,"SW - licence provozu účastníka","ks",42,null,{"$f":"D14*E14","v":0},null,0]
[16,"SW - databáze historie volání","ks",1,null,0,null,0]
[17,"SW - aktivace sdruženého provozu","ks",1,null,0,null,0]
[20,"SW - bezdrátový modul","ks",26,null,0,null,0]
[25,"Univerzální police 19\"/1U","ks",1,null,0,null,0]
[34,"Datový switch 24 portů/19\" (CZ)","ks",1,null,0,null,0]
[32,"Datový switch 8 portů - 12V","ks",22,null,0,null,0,null,"K daným switchům je potřeba\n přibalit DC-12V (DS-12V)"]
[35,"Napájecí injektor 7 portů","ks",22,null,0,null,0]
[39,"Modul DC 12V","ks",22,null,0,null,0]
[49,"Svítidlo signalizační LED","ks",24,null,{"$f":"D23*E23","v":0},null,{"$f":"D23*G23","v":0},null,"Analogový prvek"]
[50,"Orientační směrové svítidlo LED IP","ks",8,null,{"$f":"D24*E24","v":0},null,{"$f":"D24*G24","v":0},null,"CL / DL-IP/M R02.0 nebo R02.1 "]
[54,"Pokojový terminál hovorový s bezdrátovým modulem","ks",26,null,{"$f":"D25*E25","v":0},null,{"$f":"D25*G25","v":0},null,"IFT-A / IFT-B / RT-07CPU/M / RT-07/M\n / SM-32/M / WR-L1/M "]
[70,"Zásuvka pacienta s držákem a reproduktorem\n(přenos hlasitého hovorového spojení sestra - klient, přenos hlasité reprodukce rádia a centrální hlašení vždy v případě, je - li koncový prvek zavěšen v držáku, či zavěšen na hrazdě postele klienta)","ks",42,null,0,null,0,null,"IFD-A / IFD-B / BC-07CPUA/M / \nSM-32/M / BC-07H/M"]
[80,"Terminál pacienta s tlačítkem volání ošetřovatelky ","ks",42,null,{"$f":"D27*E27","v":0},null,0]
[87,"Šňůra kroucená","ks",42,null,0,null,0]
[104,"Bezdrátové přenosné tlačítko s detekcí pádu                        (hlídání baterie, IP65)","ks",42,null,{"$f":"D29*E29","v":0},null,0]
[null,"Táhlo a tlačítko nouzového volání","ks",72,null,{"$f":"D30*E30","v":0},null,{"$f":"D30*G30","v":0},null,"Analogový prvek"]
[150,"Patch kabel","ks",77,null,{"$f":"E31*D31","v":0},null,{"$f":"D31*G31","v":0}]
[null,"Konektor RJ45 UTP CAT5e včetně ochrany a proměření","ks",156,null,{"$f":"E32*D32","v":0},null,{"$f":"D32*G32","v":0}]
[null,"Součty:",null,null,null,{"$f":"SUM(F7:F32)","v":0},null,{"$f":"SUM(H7:H32)","v":0}]
[]
[null,"Oživení, konfigurace a ostatní rozpočtové náklady"]
[null,"Instalace a konfigurace systému","ks",1,null,null,null,{"$f":"D36*G36","v":0}]
[null,"Kontrolní provoz, zaškolení, vedlejší výdaje","ks",1,null,null,null,0]
[null,"Ekologická likvidace odpadu","ks",1,null,null,null,{"$f":"D38*G38","v":0}]
[null,"Úklid staveniště","hod",4,null,null,null,0]
[null,"Doprava","kpl",1,null,null,null,0]
[null,"Vypracování PD skutečného provedení stavby","ks",1,null,null,null,0]
[null,"Součty:",null,null,null,null,null,{"$f":"SUM(H36:H41)","v":0}]
[]
[null,"Slaboproudé rozvody - dodávka a montáž vodičů"]
[null,"kabel do trubek, nebo do lišt LSOH","m",2460,null,{"$f":"D45*E45","v":0},null,{"$f":"D45*G45","v":0}]
[null,"vodič do trubek, nebo do lišt","m",455,null,0,null,{"$f":"G46*D46","v":0}]
[null,"Součty:",null,null,null,{"$f":"SUM(F45:F46)","v":0},null,{"$f":"SUM(H45:H46)","v":0}]
[]
[null,"Hrubá instalace - trubkování (lištování) a osazení instalačních krabic"]
[null,"sádra štukatérská","kg",5,null,{"$f":"D50*E50","v":0},null,{"$f":"D50*G50","v":0}]
[null,"štukovací směs","kg",5,null,0,null,0]
[null,"ostatní drobný instalační materiál (izolační pásky, stahovací plastové pásky, spojovací materiál, svorky, koncovky, štítky, uchycovací materiál…)","kpl",1,null,{"$f":"D52*E52","v":0},null,0]
[null,"pomocné montážní, instalační a stavební práce (přesun hmot a materiálu, stěhování nábytku, propoj s tel. ústřednou, propoj s datovou sítí objektu, nepředvídatelné práce)","hod",4,null,null,null,{"$f":"G53*D53","v":0}]
[null,"demontáž zastaralého zařízení","hod",8,null,null,null,0]
[null,"demontáž a zpětná montáž podhledů","hod",8,null,null,null,0]
[null,"Součty:",null,null,null,{"$f":"SUM(F50:F55)","v":0},null,{"$f":"SUM(H50:H55)","v":0}]
[]
[null,"Rekapitulace:"]
[null,"Dodávky a montáže celkem - cena bez DPH:",null,null,null,null,null,{"$f":"F33+H33+H42+F47+H47+F56+H56","v":0}]
[]
[]
[]
[]
[]
[]
[]
[]
[]
[]
[]
[]
[]
[]
[]
[]
[]
[]
[]
[]
[]
[]
[]
[]
[null,"CODACO ELECTRONIC s.r.o., Hemy 825, Valašské Meziříčí 757 01"]
[null,"IČ: 25365312, DIČ: CZ25365312"]